bitfinex/quotes_ETHUSD_20250623
["timestamp","ask_amount","ask_price","bid_price","bid_amount"]
[1750640097549,7.477,2248.2,2247.6,9.811066]
[1750640097922,7.52148422,2248.2,2247.6,9.811066]
[1750640098325,7.477,2248.2,2247.7,0.04448273]
[1750640098677,7.477,2248.2,2247.6,9.811066]
[1750640098678,7.52148422,2248.2,2247.2,10.7886846]
[1750640098953,8.58251264,2248.2,2247.4,1.92454846]
[1750640099140,8.53802842,2248.2,2247.4,1.92454846]
[1750640099343,0.7763,2248.0,2247.2,1.25048601]
[1750640099544,0.04448422,2247.9,2247.2,1.25048601]
[1750640099950,0.04448422,2247.9,2247.3,0.04449286]
[1750640100351,0.04448422,2247.9,2247.1,0.0611]
[1750640100352,10.8133,2247.7,2247.1,0.0611]
[1750640100672,8.82571422,2247.6,2247.1,0.0611]
[1750640100832,8.78123,2247.6,2247.4,1.0]
[1750640101027,0.04448422,2247.5,2247.4,1.0]
[1750640102448,0.7508,2248.1,2247.5,0.0611]
[1750640102743,0.7508,2248.1,2247.7,0.0611]
[1750640102948,7.478,2248.1,2247.7,0.0611]
[1750640103146,7.478,2248.1,2247.4,1.8073]
[1750640103344,7.52248422,2248.1,2247.4,3.02774986]
[1750640103696,0.8033,2248.3,2247.6,0.0611]
[1750640103878,7.478,2248.2,2247.8,0.0611]
[1750640104172,9.697,2248.3,2248.1,0.0611]
[1750640105255,9.697,2248.3,2247.4,2.22044986]
[1750640105456,1.77658422,2248.2,2247.5,0.04447702]
[1750640105772,0.0592,2248.0,2247.4,1.0]
[1750640105959,0.10368422,2248.0,2247.4,1.0]
[1750640106562,0.10368422,2248.0,2247.4,1.04449096]
[1750640106749,0.04448422,2248.0,2247.4,1.04449096]
[1750640107076,7.477,2248.3,2247.6,0.0611]
[1750640107262,7.477,2248.3,2247.9,0.0611]
[1750640108246,10.684,2249.3,2247.8,10.33609859]
[1750640108576,0.811,2248.7,2248.0,0.0611]
[1750640108775,19.696,2248.6,2248.0,0.0611]
[1750640109273,0.04448422,2248.5,2247.9,0.8329]
[1750640109574,0.04448422,2248.5,2247.7,0.8645]
[1750640109874,2.219,2248.6,2247.8,0.65557867]
[1750640110176,2.219,2248.6,2247.8,10.94719859]
[1750640110360,2.219,2248.6,2247.9,1.17505986]
[1750640110676,2.26348422,2248.6,2247.8,0.6111]
[1750640111186,2.26348422,2248.6,2247.9,0.0611]
[1750640111187,2.219,2248.6,2247.9,0.0611]
[1750640111546,2.26348422,2248.6,2247.9,0.0611]
[1750640112076,0.04448422,2248.6,2247.9,0.0611]
[1750640112380,7.476,2248.7,2248.1,0.0611]
[1750640112681,7.476,2248.7,2248.0,10.8237]
[1750640112682,7.476,2248.6,2248.0,10.8237]
[1750640112847,7.476,2248.6,2248.1,1.88918431]
[1750640113051,0.784,2248.8,2248.2,0.0611]
[1750640113355,9.73948422,2248.7,2248.1,1.88918431]
[1750640113555,9.695,2248.7,2248.0,0.8802]
[1750640113857,0.04448422,2248.6,2248.0,0.0565]
[1750640114677,0.8447,2248.8,2248.0,0.0565]
[1750640114678,9.694,2248.5,2248.1,0.0565]
[1750640114997,9.694,2248.5,2248.2,0.0565]
[1750640115582,0.784,2248.8,2248.2,0.0565]
[1750640115791,1.337516,2250.1,2248.2,0.0565]
[1750640115792,2.219,2248.9,2248.3,0.8309]
[1750640115979,2.219,2249.1,2248.6,0.6065]
[1750640116166,2.219,2249.1,2248.9,0.0565]
[1750640116361,2.219,2249.1,2248.9,0.10096047]
[1750640117097,0.7876,2249.4,2248.9,0.10096047]
[1750640117283,0.7876,2249.4,2248.8,0.8309]
[1750640117284,9.694,2249.3,2248.8,0.8309]
[1750640117489,10.74660842,2249.3,2248.8,0.8874]
[1750640119279,10.74660842,2249.3,2248.9,0.04445932]
[1750640119502,10.74660842,2249.3,2248.9,0.10095932]
[1750640120416,9.694,2249.3,2248.9,0.10095932]
[1750640120798,9.694,2249.3,2248.9,0.04445932]
[1750640120969,9.694,2249.3,2248.8,0.8309]
[1750640121302,9.694,2249.3,2248.9,0.04445937]
[1750640121689,9.7547,2249.3,2248.7,0.10095939]
[1750640121998,10.80893,2249.3,2248.7,0.10095939]
[1750640122406,0.0607,2249.1,2248.4,0.8075]
[1750640122610,0.7689,2249.0,2248.4,1.24228647]
[1750640122908,7.5327,2248.9,2248.4,1.24228647]
[1750640123122,2.219,2248.8,2248.4,1.24228647]
[1750640123281,2.219,2248.8,2248.5,0.1009669]
[1750640124020,2.219,2248.8,2248.4,2.36651512]
[1750640124180,7.472,2248.8,2248.5,0.04446729]
[1750640124382,7.472,2248.8,2248.6,0.0565]
[1750640124901,7.472,2248.8,2248.2,0.781]
[1750640125079,0.9691,2248.7,2248.2,0.8375]
[1750640125819,0.9691,2248.7,2248.2,0.781]
[1750640126016,1.0298,2248.7,2248.2,0.781]
[1750640126819,0.77,2248.4,2247.6,2.06336895]
[1750640126995,9.689,2248.3,2247.7,0.04448085]
[1750640127197,9.689,2248.3,2247.6,1.22308857]
[1750640127520,0.8307,2248.2,2247.7,0.04448085]
[1750640127723,9.679,2248.1,2247.7,0.10098403]
[1750640128094,9.679,2248.1,2247.7,0.04448403]
[1750640128294,9.7397,2248.1,2247.6,1.22308857]
[1750640128500,2.209,2248.1,2247.6,0.44208857]
[1750640128741,7.47,2248.0,2247.5,0.0565]
[1750640129209,7.47,2248.0,2247.5,0.50831406]
[1750640129420,7.47,2248.0,2247.5,0.0565]
[1750640129587,7.47,2248.0,2247.4,1.781]
[1750640129791,7.47,2248.0,2247.4,1.8375]
[1750640130024,7.47,2248.0,2247.4,3.2043813]
[1750640130329,7.47,2248.0,2247.5,10.0]
[1750640130491,0.77,2248.2,2247.5,10.0]
[1750640130822,0.77,2248.2,2247.6,0.0444829]
[1750640130823,9.679,2248.1,2247.6,0.0444829]
[1750640131032,1.0449,2248.0,2247.6,0.0444829]
[1750640131326,9.679,2248.1,2247.6,0.0444829]
[1750640131628,7.47,2248.0,2247.6,0.0565]
[1750640132399,7.57518422,2248.0,2247.4,1.781]
[1750640132597,7.51448422,2248.0,2247.4,1.781]
[1750640132846,0.8244,2247.7,2247.4,1.0]
[1750640133155,0.8851,2247.7,2247.4,1.0]
[1750640133313,2.209,2247.6,2247.4,1.0]
[1750640133498,7.47,2247.5,2247.4,1.0]
[1750640133699,7.57518422,2247.5,2247.4,1.0]
[1750640133937,1.06085842,2247.5,2247.4,1.0]
[1750640134104,1.76081842,2247.9,2247.4,1.044495]
[1750640134302,7.47,2247.8,2247.4,1.0]
[1750640135121,0.0607,2247.7,2247.4,1.0]
[1750640135320,0.0607,2247.6,2247.4,1.0]
[1750640135632,2.209,2247.5,2247.4,1.0]
[1750640136102,2.2697,2247.5,2247.4,1.0]
[1750640136300,3.28691842,2247.5,2247.4,1.0]
[1750640138033,0.8065,2247.7,2247.4,1.0]
[1750640138236,9.679,2247.5,2247.4,1.0]
[1750640139524,9.7397,2247.5,2247.4,1.0]
[1750640140730,9.679,2247.5,2247.4,1.0]
[1750640141128,9.7397,2247.5,2247.4,1.0]
[1750640141328,10.79432,2247.5,2247.4,1.0]
[1750640141846,9.7397,2247.5,2247.4,1.0]
[1750640142343,7.47,2247.5,2247.4,1.0]
[1750640146113,7.527,2247.5,2247.4,1.0]
[1750640146349,0.057,2247.5,2247.4,1.0]
[1750640146553,7.469,2247.5,2247.4,1.0]
[1750640146848,8.52199842,2247.5,2247.4,1.0]
[1750640147159,8.57899842,2247.5,2247.4,1.0]
[1750640147950,8.52199842,2247.5,2247.4,1.0]
[1750640148126,7.469,2247.5,2247.4,1.0]
[1750640150933,7.526,2247.5,2247.4,1.0]
[1750640151261,7.469,2247.5,2247.4,1.0]
[1750640152453,7.526,2247.5,2247.4,1.0]
[1750640153271,7.469,2247.5,2247.4,1.0]
[1750640153454,8.58469842,2247.5,2247.4,1.0]
[1750640154583,7.469,2247.5,2247.4,1.0]
[1750640156545,7.526,2247.5,2247.4,1.0]
[1750640158248,7.9424405,2247.5,2247.4,1.0]
[1750640158450,7.94243486,2247.5,2247.4,1.0]
[1750640160157,18.70063486,2247.5,2247.4,1.0]
[1750640160355,20.79614677,2247.5,2247.4,1.0]
[1750640160670,20.79649415,2247.5,2247.4,1.0]
[1750640161274,21.34622297,2247.5,2247.4,1.0]
[1750640161645,0.057,2247.0,2246.2,0.7731]
[1750640161845,10.057,2246.8,2246.0,0.7731]
[1750640162046,10.057,2246.6,2246.0,0.7731]
[1750640162248,0.04448422,2246.5,2246.0,0.7731]
[1750640162486,7.523,2246.4,2245.9,0.2827206]
[1750640162691,0.057,2246.2,2245.9,0.2216206]
[1750640162853,7.56848422,2246.1,2245.9,0.2216206]
[1750640163184,0.057,2246.0,2245.9,0.2216206]
[1750640163348,10.10148422,2246.0,2245.9,0.2216206]
[1750640163552,11.10918842,2246.0,2245.9,0.2216206]
[1750640165550,11.05218842,2246.0,2245.9,0.2216206]
[1750640165790,10.0,2246.0,2245.9,0.2216206]
[1750640165951,9.667,2246.0,2245.9,0.2216206]
[1750640166150,0.7524,2246.1,2245.9,0.2216206]
[1750640166451,9.71148422,2246.0,2245.9,0.2216206]
[1750640166683,9.667,2246.0,2245.9,0.2216206]
[1750640167453,11.59824,2246.0,2245.9,0.2216206]
[1750640167657,21.59824,2246.0,2245.9,0.2216206]
[1750640169250,14.07524,2246.0,2245.9,0.2216206]
[1750640169457,0.7913,2246.2,2245.9,0.2216206]
[1750640169666,7.467,2246.1,2245.9,0.2827206]
[1750640169865,0.057,2246.7,2245.9,0.2827206]
[1750640169866,2.201,2246.7,2246.0,0.0611]
[1750640170074,7.467,2246.6,2246.2,0.0611]
[1750640170280,7.467,2246.7,2246.4,0.0611]
[1750640170552,7.467,2246.7,2246.3,0.7817]
[1750640170779,7.467,2246.7,2246.4,0.0611]
[1750640171312,7.467,2246.7,2246.3,0.7817]
[1750640171489,7.466,2246.7,2246.5,0.0611]
[1750640171676,7.466,2246.7,2246.4,1.11393773]
[1750640171988,7.466,2246.7,2246.5,0.0611]
[1750640172698,7.466,2246.7,2246.4,1.11393773]
[1750640173162,7.466,2246.7,2246.5,0.0611]
[1750640173772,7.465,2246.6,2246.4,0.0565]
[1750640174598,7.465,2246.6,2246.5,0.0565]
[1750640179401,2.201,2246.8,2246.5,0.0565]
[1750640179583,2.201,2246.8,2246.4,0.0565]
[1750640179785,2.201,2246.8,2246.4,0.10100822]
[1750640180088,2.201,2246.8,2246.4,0.04450822]
[1750640180698,7.463,2246.8,2246.6,0.7853]
[1750640180880,7.463,2246.8,2246.7,0.0565]
[1750640181891,7.463,2246.8,2246.6,0.7853]
[1750640182196,7.463,2246.8,2246.6,0.8418]
[1750640184189,2.201,2246.9,2246.6,0.7853]
[1750640184387,9.662,2246.9,2246.7,0.0565]
[1750640185588,0.82728422,2246.8,2246.1,0.0565]
[1750640185770,0.88628422,2246.8,2246.1,0.0565]
[1750640186406,0.88628422,2246.8,2245.9,1.0069206]
[1750640186602,0.059,2246.7,2245.9,1.0069206]
[1750640186794,1.09378191,2246.7,2245.9,1.24713536]
[1750640186974,0.04448422,2246.6,2245.9,1.0069206]
[1750640187171,7.519,2246.5,2245.9,1.0069206]
[1750640187371,0.059,2246.3,2245.9,1.0069206]
[1750640187880,3.04988422,2246.4,2245.9,0.2216206]
[1750640188496,10.0,2246.3,2245.9,0.2216206]
[1750640188822,0.7909,2246.0,2245.9,0.2216206]
[1750640188990,8.35438422,2246.0,2245.9,0.2216206]
[1750640189305,8.2509,2246.0,2245.9,0.2216206]
[1750640189510,9.649,2246.0,2245.9,0.2216206]
[1750640190085,0.7692,2246.6,2245.9,0.2216206]
[1750640190289,7.46,2246.3,2245.9,0.2216206]
[1750640190484,0.7692,2246.6,2246.1,0.0565]
[1750640190726,9.649,2246.5,2246.1,0.0565]
[1750640191020,9.649,2246.5,2245.9,0.2216206]
[1750640191228,0.04448422,2246.4,2245.9,1.32169266]
[1750640191390,9.649,2246.5,2246.0,0.10101906]
[1750640191588,9.649,2246.5,2246.1,0.0565]
[1750640192729,0.04448422,2246.4,2245.9,0.2216206]
[1750640193024,0.04448422,2246.4,2245.9,0.2781206]
[1750640193324,9.649,2246.5,2246.0,0.8725]
[1750640193690,0.059,2246.4,2246.0,0.816]
[1750640193893,0.10348422,2246.4,2245.9,0.2216206]
[1750640194097,0.7692,2246.6,2246.0,0.04452031]
[1750640194343,9.647,2246.5,2245.9,0.2216206]
[1750640194643,9.647,2246.5,2246.0,0.0565]
[1750640195232,7.458,2246.4,2246.0,0.0565]
[1750640195601,7.458,2246.4,2246.1,0.7796]
[1750640195812,9.647,2246.5,2246.2,0.04451538]
[1750640196002,9.647,2246.5,2246.3,0.0565]
[1750640196519,9.647,2246.5,2246.1,0.7796]
[1750640196725,9.647,2246.5,2245.9,1.0012206]
[1750640196726,1.00918422,2246.4,2245.9,1.0012206]
[1750640197025,1.06818422,2246.4,2245.9,1.0012206]
[1750640197641,0.8499,2246.3,2245.9,0.2216206]
[1750640199319,9.647,2246.5,2246.0,0.04452165]
[1750640199320,2.189,2246.5,2246.0,0.04452165]
[1750640199534,2.189,2246.5,2246.2,0.0565]
[1750640199858,2.189,2246.5,2246.2,0.1010147]
[1750640200005,2.189,2246.5,2246.2,0.0565]
[1750640200745,2.189,2246.5,2246.2,0.1010147]
[1750640201259,2.189,2246.5,2246.1,0.8085]
[1750640203425,2.23348422,2246.5,2246.1,0.8085]
[1750640203853,2.29278422,2246.5,2245.9,1.1023206]
[1750640204746,2.29278422,2246.5,2245.9,2.26755266]
[1750640205658,2.29278422,2246.5,2245.9,2.21105266]
[1750640205823,2.29278422,2246.5,2245.9,1.38685266]
[1750640206645,2.29278422,2246.5,2245.9,0.2216206]
[1750640206850,0.7774,2246.4,2245.9,0.2216206]
[1750640207151,0.0593,2246.2,2245.9,0.2216206]
[1750640207354,0.04448422,2246.3,2245.9,0.2800206]
[1750640207532,0.82188422,2246.4,2245.9,0.2800206]
[1750640207857,9.642,2246.6,2246.1,0.0584]
[1750640208052,9.642,2246.6,2246.0,0.81642052]
[1750640208553,0.04448422,2246.5,2246.0,0.8303]
[1750640208753,0.10378422,2246.5,2246.0,0.8303]
[1750640208971,1.15017264,2246.5,2245.9,0.2216206]
[1750640209332,1.09087264,2246.5,2245.9,0.2216206]
[1750640209550,0.7891,2246.4,2245.9,0.2216206]
[1750640209757,0.0593,2246.2,2245.9,0.2216206]
[1750640209924,0.10378422,2246.3,2245.9,0.2216206]
[1750640211128,0.04448422,2246.3,2245.9,0.2216206]
[1750640211549,0.0593,2246.2,2245.9,0.2216206]
[1750640211748,10.4301,2246.4,2246.0,0.0584]
[1750640212064,10.695,2247.1,2246.0,0.0584]
[1750640212065,0.7897,2247.0,2246.4,0.8011]
[1750640212236,2.189,2247.0,2246.5,0.04450634]
[1750640212431,2.189,2247.0,2246.6,0.0584]
[1750640212849,2.23348422,2247.0,2246.6,0.0584]
[1750640213064,2.189,2247.0,2246.6,0.0584]
[1750640213224,2.189,2247.0,2246.4,0.8011]
[1750640213424,4.34605422,2247.0,2246.4,0.8011]
[1750640214046,7.451,2246.9,2246.4,0.8011]
[1750640214246,7.451,2246.9,2246.4,0.8595]
[1750640214853,7.451,2246.9,2246.4,0.8011]
[1750640215081,7.451,2246.9,2246.5,0.0584]
[1750640215231,0.87308422,2246.8,2246.2,0.44973721]
[1750640215422,0.87308422,2246.8,2246.1,0.8876]
[1750640216568,9.639,2246.7,2246.1,0.8876]
[1750640217422,2.250687,2246.9,2246.2,0.0584]
[1750640217642,9.68248422,2246.8,2246.3,0.7869]
[1750640217862,9.638,2246.8,2246.3,0.8453]
[1750640218059,9.6973,2246.8,2246.3,0.8453]
[1750640218428,9.6973,2246.8,2245.9,0.2216206]
[1750640218429,0.0593,2246.6,2245.9,0.2216206]
[1750640218623,0.41681516,2246.5,2245.9,0.2216206]
[1750640218930,0.10378422,2246.6,2246.0,0.10291877]
[1750640219127,10.03981686,2246.5,2246.0,0.10291877]
[1750640219459,9.623,2246.5,2246.0,0.0584]
[1750640219958,9.6823,2246.5,2245.9,0.2216206]
[1750640220163,0.10378422,2246.4,2245.9,0.2216206]
[1750640220363,0.10378422,2246.4,2246.0,0.0445188]
[1750640220661,0.04448422,2246.4,2246.0,0.1029188]
[1750640220960,9.623,2246.5,2246.2,0.0584]
[1750640221264,9.623,2246.5,2246.1,0.7743]
[1750640221441,9.623,2246.5,2246.1,0.8327]
[1750640222041,0.7554,2246.7,2246.1,0.8327]
[1750640222242,0.0593,2246.8,2245.9,0.67667256]
[1750640222243,10.35767728,2246.4,2245.9,0.2216206]
[1750640222549,0.7934,2246.2,2245.9,0.2216206]
[1750640222735,0.41699926,2246.1,2245.9,0.2216206]
[1750640222932,0.41699926,2246.0,2245.9,0.2216206]
[1750640223368,0.47629926,2246.0,2245.9,0.2216206]
[1750640223586,21.40069926,2246.0,2245.9,0.2216206]
[1750640223734,44.60289489,2246.0,2245.9,0.1351206]
[1750640224146,0.7524,2245.8,2244.8,0.775]
[1750640224378,1.21388348,2245.7,2244.8,0.775]
[1750640224545,10.03899926,2245.6,2244.9,0.0584]
[1750640224880,0.46148348,2245.5,2244.9,0.0584]
[1750640225086,0.04448422,2245.5,2244.9,0.10294187]
[1750640225237,9.621,2245.4,2244.9,0.0584]
[1750640225640,9.621,2245.4,2244.8,0.775]
[1750640226149,9.621,2245.4,2244.9,0.0584]
[1750640226337,0.04448422,2245.3,2244.9,0.0584]
[1750640226536,7.49148422,2245.3,2244.9,0.0584]
[1750640227770,8.45823264,2245.3,2244.9,0.0584]
[1750640228003,0.815,2245.2,2244.6,0.0584]
[1750640228191,0.04448422,2245.1,2244.6,0.0584]
[1750640228706,0.04448422,2245.1,2244.5,0.789]
[1750640228910,0.04448422,2245.1,2244.5,1.8679]
[1750640229295,0.04448422,2245.1,2244.6,0.0584]
[1750640229492,0.04448422,2245.1,2244.5,0.789]
[1750640230908,0.04448422,2245.1,2244.6,0.04454977]
[1750640231083,0.04448422,2245.1,2244.7,0.0584]
[1750640232185,7.49048422,2245.1,2244.7,0.0584]
[1750640232498,8.78654954,2245.1,2244.7,0.0584]
[1750640232701,8.74206532,2245.1,2244.6,0.10294977]
[1750640232919,8.74206532,2245.1,2244.7,0.0584]
[1750640233220,8.74206532,2245.1,2244.6,0.04454977]
[1750640233374,7.446,2245.1,2244.9,0.0584]
[1750640233699,7.446,2245.1,2245.0,0.8552]
[1750640233893,0.8292,2245.6,2245.0,0.8552]
[1750640234210,0.04448422,2245.5,2245.1,0.0584]
[1750640234416,2.22048422,2245.5,2245.0,0.8552]
[1750640234717,7.75096842,2245.4,2245.0,0.0584]
[1750640234919,0.04448422,2245.3,2244.9,0.0584]
[1750640235290,0.805,2245.2,2244.6,0.0584]
[1750640235504,0.84948422,2245.2,2244.7,0.0584]
[1750640235705,9.622,2245.1,2244.7,0.0584]
[1750640236086,9.622,2245.1,2244.6,0.04454644]
[1750640236513,9.622,2245.1,2244.7,0.0584]
[1750640236680,0.04448422,2245.0,2244.7,0.0584]
[1750640237205,0.04448422,2245.0,2244.6,0.0584]
[1750640237403,10.6647,2245.1,2244.6,0.0584]
[1750640237606,10.6647,2245.1,2244.5,0.7529]
[1750640237785,9.622,2245.1,2244.6,0.04454568]
[1750640237991,7.446,2245.0,2244.6,0.04454568]
[1750640238183,7.446,2245.0,2244.5,0.7529]
[1750640238399,7.446,2245.0,2244.6,0.0584]
[1750640239107,7.446,2245.0,2244.6,0.10294283]
[1750640239418,7.445,2245.1,2244.7,0.0584]
[1750640239592,7.48948422,2245.1,2244.5,0.7529]
[1750640240419,7.48948422,2245.1,2244.6,0.0584]
[1750640241783,7.48948422,2245.1,2244.5,0.7529]
[1750640242016,7.445,2245.1,2244.7,0.0584]
[1750640242396,7.445,2245.0,2244.7,0.0584]
[1750640242604,7.445,2245.0,2244.6,0.04454697]
[1750640243126,7.445,2245.0,2244.5,0.7529]
[1750640243127,7.445,2245.0,2244.7,0.0584]
[1750640244120,7.445,2245.0,2244.6,0.0584]
[1750640244301,7.445,2245.0,2244.7,0.0584]
[1750640244500,7.445,2245.0,2244.6,0.04454499]
[1750640245019,7.445,2245.0,2244.5,0.7529]
[1750640245225,7.445,2245.0,2244.5,1.8736265]
[1750640245587,7.445,2245.0,2244.6,0.04454501]
[1750640245795,7.445,2245.0,2244.7,0.0584]
[1750640246110,7.445,2245.0,2244.6,0.0584]
[1750640246712,7.445,2245.0,2244.6,0.10294349]
[1750640246904,7.445,2245.0,2244.7,0.0584]
[1750640247422,7.445,2245.0,2244.6,0.0584]
[1750640247628,1.06286842,2245.4,2244.8,0.0584]
[1750640247930,2.177,2245.2,2244.9,0.0584]
[1750640248954,2.177,2245.2,2244.8,0.7826]
[1750640249226,2.177,2245.2,2245.0,0.0584]
[1750640250034,0.22555075,2246.6,2244.8,0.7826]
[1750640250035,0.8156,2245.8,2244.9,0.10294012]
[1750640250237,2.163,2245.8,2245.3,0.8143]
[1750640250422,2.163,2245.8,2245.5,0.0584]
[1750640250599,2.163,2245.8,2245.4,0.04452856]
[1750640250807,2.163,2245.8,2245.3,0.8143]
[1750640251543,2.163,2245.8,2245.5,0.0584]
[1750640252134,0.04448422,2245.7,2245.3,0.8143]
[1750640252804,0.04448422,2245.7,2245.1,0.8446]
[1750640252805,0.79688422,2245.7,2245.1,0.8446]
[1750640253344,10.7,2246.0,2245.2,0.04453361]
[1750640253502,8.2001,2245.7,2245.1,0.7862]
[1750640253705,0.04448422,2245.6,2245.1,0.7862]
[1750640253907,0.04448422,2245.6,2245.2,0.0584]
[1750640254906,0.04448422,2245.6,2244.7,0.8118]
[1750640255110,0.41657628,2245.5,2244.9,0.0584]
[1750640255308,0.04448422,2245.4,2244.8,0.0584]
[1750640256244,0.04448422,2245.5,2244.8,0.0584]
[1750640257443,0.41666697,2245.4,2244.8,0.0584]
[1750640257642,2.20748422,2245.3,2244.8,0.0584]
[1750640258202,2.96608422,2245.3,2244.8,0.0584]
[1750640258405,3.26269264,2245.3,2244.7,0.8118]
[1750640258616,3.26269264,2245.3,2244.7,0.8702]
[1750640259106,3.26269264,2245.3,2244.7,0.8118]
[1750640259302,3.26269264,2245.3,2244.4,0.8862]
[1750640260420,0.41676052,2245.2,2244.4,0.8862]
[1750640260766,0.7816,2245.0,2244.4,2.20921469]
[1750640260906,0.04448422,2244.9,2244.4,12.20921469]
[1750640261105,0.04448422,2244.9,2244.4,1.38141469]
[1750640261307,0.04448422,2244.9,2244.4,0.0584]
[1750640261507,2.163,2244.8,2244.4,0.0584]
[1750640261744,2.163,2244.8,2244.1,1.339791]
[1750640261745,0.7851,2244.7,2244.1,1.339791]
[1750640261906,0.7851,2244.5,2243.7,0.2216206]
[1750640262106,0.7851,2244.3,2243.7,0.2216206]
[1750640262347,3.07573262,2244.2,2243.7,0.2216206]
[1750640262855,0.7979,2244.0,2243.7,0.2216206]
[1750640263019,0.04448422,2243.9,2243.7,0.2216206]
[1750640263226,2.163,2243.8,2243.7,0.2216206]
[1750640263427,9.599,2243.8,2243.7,0.2216206]
[1750640263742,9.599,2243.9,2243.7,0.2216206]
[1750640263967,0.7879,2244.6,2243.7,0.2216206]
[1750640264113,2.163,2244.3,2244.0,10.0]
[1750640264462,2.163,2244.3,2244.1,0.04455526]
[1750640264763,0.04448422,2244.2,2243.7,1.29008712]
[1750640264912,0.7849,2244.1,2243.7,0.2216206]
[1750640265113,7.48148422,2244.0,2243.7,0.2216206]
[1750640266337,0.04448422,2244.0,2243.7,0.2216206]
[1750640266937,9.6,2243.9,2243.7,0.2216206]
[1750640267362,9.6,2243.9,2243.7,0.2824206]
[1750640267674,9.6,2243.9,2243.7,0.2216206]
[1750640268275,0.04448422,2243.8,2243.7,0.2216206]
[1750640270171,0.7849,2244.1,2243.7,0.2216206]
[1750640270373,9.64548422,2244.0,2243.7,0.2216206]
[1750640270562,9.601,2244.0,2243.7,0.2216206]
[1750640270883,0.7849,2244.1,2243.7,0.2216206]
[1750640270884,11.71817728,2243.8,2243.7,0.2216206]
[1750640271048,22.04395438,2243.8,2243.7,0.2216206]
[1750640271372,22.59393262,2243.8,2243.7,0.2216206]
[1750640271697,0.8288,2243.6,2242.4,0.8671]
[1750640271872,11.16920623,2243.5,2242.4,1.31753717]
[1750640272196,0.8288,2243.4,2241.9,1.08979511]
[1750640272354,0.775,2242.9,2242.0,0.37233836]
[1750640272538,9.64548422,2242.8,2242.0,0.37233836]
[1750640272740,0.04448422,2242.7,2242.0,0.37233836]
[1750640272947,0.04448422,2242.7,2241.9,1.15477293]
[1750640273166,0.04448422,2242.7,2241.9,1.11017361]
[1750640273862,0.04448422,2242.7,2242.1,0.0608]
[1750640274068,9.6,2242.6,2242.0,0.04459699]
[1750640274373,9.6,2242.6,2242.1,0.0608]
[1750640274541,1.15388,2243.3,2242.2,0.55]
[1750640274542,9.6,2242.5,2242.2,0.55]
[1750640274745,7.436,2242.5,2242.1,0.0608]
[1750640275047,7.436,2242.5,2242.2,0.0608]
[1750640275655,7.436,2242.5,2242.1,0.41468789]
[1750640275868,7.436,2242.5,2242.1,0.10539524]
[1750640276068,7.436,2242.5,2242.2,0.0608]
[1750640276372,7.436,2242.5,2242.1,0.04459524]
[1750640276577,7.436,2242.5,2242.2,0.0608]
[1750640277078,0.775,2243.1,2242.2,0.0608]
[1750640277276,0.775,2243.1,2242.4,0.0608]
[1750640277483,7.439,2243.0,2242.4,0.10538553]
[1750640277775,7.439,2243.0,2242.4,0.0608]
[1750640277942,7.48348422,2243.0,2242.4,0.0608]
[1750640278142,7.439,2243.0,2242.4,0.0608]
[1750640278371,0.775,2243.1,2242.4,1.40768073]
[1750640278579,7.438,2242.9,2242.5,0.0608]
[1750640279549,7.438,2242.9,2242.4,1.40768073]
[1750640280474,0.04448422,2242.8,2242.4,1.34688073]
[1750640280673,7.439,2242.7,2242.4,1.40768073]
[1750640281477,7.439,2242.7,2242.4,1.34688073]
[1750640281787,0.04448422,2242.6,2242.3,0.8175]
[1750640281958,7.439,2242.7,2242.3,0.8175]
[1750640282356,0.04448422,2242.9,2242.3,0.7567]
[1750640282563,9.591,2242.8,2242.3,0.8175]
[1750640282750,9.591,2242.8,2242.3,0.7567]
[1750640282945,0.775,2243.1,2242.4,0.10539102]
[1750640283174,9.63648422,2243.0,2242.4,0.0608]
[1750640283478,1.04114842,2242.9,2242.3,0.7567]
[1750640283678,0.04448422,2242.8,2242.3,0.7567]
[1750640283849,0.04448422,2242.8,2242.4,0.0608]
[1750640284051,0.04448422,2242.8,2242.3,0.7567]
[1750640284271,0.04448422,2242.8,2242.4,0.0608]
[1750640284575,1.08563264,2242.9,2242.3,0.7567]
[1750640284780,1.08563264,2242.9,2242.4,0.0608]
[1750640285679,7.438,2242.8,2242.4,0.0608]
[1750640286086,7.48248422,2242.8,2242.4,0.0608]
[1750640286383,7.438,2242.7,2242.4,0.0445897]
[1750640286565,7.438,2242.7,2242.5,0.0608]
[1750640287160,7.438,2242.7,2242.4,0.0445897]
[1750640287363,0.775,2243.1,2242.5,0.0608]
[1750640287562,2.9823,2243.3,2242.7,0.0608]
[1750640287759,7.438,2243.2,2242.9,0.0608]
[1750640287962,0.04448422,2243.1,2242.7,0.0608]
[1750640288188,0.04448422,2243.1,2242.5,0.8075]
[1750640288505,0.04448422,2243.1,2242.4,0.0608]
[1750640288650,1.09096264,2243.1,2242.4,0.0608]
[1750640289790,9.59,2243.0,2242.4,0.0608]
[1750640290669,9.59,2243.0,2242.4,10.04458534]
[1750640290986,9.59,2243.0,2242.5,0.0608]
[1750640291291,9.59,2243.0,2242.7,0.0608]
[1750640292057,9.59,2243.0,2242.3,1.3291]
[1750640292258,0.8293,2243.3,2242.4,0.0608]
[1750640292472,9.63448422,2243.2,2242.4,0.0608]
[1750640292788,1.04637842,2243.1,2242.4,0.0608]
[1750640292993,7.437,2243.0,2242.5,0.55]
[1750640293201,7.437,2243.2,2242.8,0.0608]
[1750640293358,7.437,2243.2,2242.7,10.0]